bitfinex/quotes_ETHUSD_20251128
["timestamp","ask_amount","ask_price","bid_price","bid_amount"]
[1764291963429,0.3119588,3017.2,3017.1,3.72884101]
[1764291964452,0.3119588,3017.2,3017.1,4.153724]
[1764291965749,0.002,3017.2,3017.1,4.253724]
[1764291966533,0.002,3017.2,3017.1,4.391824]
[1764291967254,0.002,3017.2,3017.1,4.806224]
[1764291967644,0.002,3017.5,3017.1,12.06070013]
[1764291967953,0.002,3017.6,3017.5,4.30491627]
[1764291968124,0.002,3017.6,3017.5,4.71931627]
[1764291968325,0.002,3017.6,3017.5,5.13371627]
[1764291968533,0.002,3017.9,3017.5,6.38992093]
[1764291968742,0.002,3017.9,3017.8,0.5144]
[1764291969142,0.002,3017.9,3017.8,0.9288]
[1764291970065,0.002,3017.9,3017.8,3.82807221]
[1764291970371,1.1707,3017.9,3017.3,6.62844264]
[1764291970662,0.4019,3017.7,3017.4,0.89844959]
[1764291971033,0.653,3017.9,3017.5,0.1]
[1764291972359,0.189,3017.9,3017.6,3.31389183]
[1764291972542,0.4687,3017.6,3017.5,3.31396134]
[1764291973862,0.4959,3017.8,3017.5,3.31396134]
[1764291974162,0.4959,3017.8,3017.5,6.62796299]
[1764291974463,0.189,3017.9,3017.4,0.1]
[1764291974962,0.6849,3017.9,3017.4,0.1]
[1764291975466,0.189,3017.9,3017.4,0.1]
[1764291975651,0.4687,3017.5,3017.3,3.31422132]
[1764291976544,0.4959,3017.7,3017.4,0.00869967]
[1764291976946,0.002,3017.9,3017.6,0.4144]
[1764291977145,0.002,3017.9,3017.7,0.0086902]
[1764291978136,0.002,3017.9,3017.5,0.0086902]
[1764291979236,0.002,3017.9,3017.6,6.62778366]
[1764291979530,0.002,3017.9,3017.8,0.5144]
[1764291979936,0.4707,3017.9,3017.7,0.00869078]
[1764291980144,0.4094,3017.8,3017.6,6.62778366]
[1764291980344,0.1986,3017.9,3017.6,6.62778366]
[1764291980564,0.002,3017.9,3017.7,0.00869143]
[1764291980766,0.002,3017.9,3017.7,0.10869143]
[1764291981169,0.002,3017.9,3017.8,3.72807221]
[1764291981536,0.002,3017.9,3017.8,3.73675966]
[1764291985070,0.002,3017.9,3017.8,3.32235966]
[1764291986070,0.002,3017.9,3017.8,3.73675966]
[1764291986274,0.002,3017.9,3017.8,5.75642337]
[1764291986471,0.002,3017.9,3017.8,5.74773592]
[1764291986672,0.002,3017.9,3017.8,5.75642337]
[1764291987873,0.002,3017.9,3017.8,6.07873592]
[1764291988646,0.002,3017.9,3017.8,5.33333592]
[1764291988877,0.002,3017.9,3017.8,5.74773592]
[1764291990254,0.002,3017.9,3017.8,6.08742337]
[1764291990652,0.002,3017.9,3017.8,9.83693199]
[1764291991755,0.002,3017.9,3017.8,9.42253199]
[1764291992657,0.002,3017.9,3017.8,9.00813199]
[1764291993768,0.4707,3017.9,3017.8,8.28253788]
[1764291994080,1.47281369,3017.9,3017.8,3.31367221]
[1764291994282,1.47281369,3017.9,3017.6,3.41389183]
[1764291994456,1.1632,3017.9,3017.6,6.72778366]
[1764291994952,0.4707,3017.9,3017.6,6.72778366]
[1764291995153,0.4707,3017.9,3017.7,0.0086902]
[1764291995383,0.4707,3017.9,3017.8,4.60359607]
[1764291995384,0.002,3017.9,3017.8,4.60359607]
[1764291996252,0.31192683,3017.9,3017.8,7.91726828]
[1764291996869,0.002,3017.9,3017.8,8.33166828]
[1764291997753,0.002,3017.9,3017.8,7.91726828]
[1764291998696,0.002,3017.9,3017.8,8.33166828]
[1764291998880,0.002,3017.9,3017.8,9.93585915]
[1764291999191,0.002,3017.9,3017.8,10.66145326]
[1764291999605,0.002,3017.9,3017.8,10.99245326]
[1764292001585,1.1718,3017.9,3017.8,3.31367221]
[1764292002663,1.1718,3017.9,3017.5,6.6290033]
[1764292002894,0.4896,3017.6,3017.5,4.04059576]
[1764292003092,0.4896,3017.6,3017.5,4.14059576]
[1764292003384,0.4896,3017.6,3017.5,5.62640537]
[1764292004286,0.9713,3017.6,3017.5,3.31500165]
[1764292006075,0.9713,3017.6,3017.5,0.001]
[1764292007188,0.9713,3017.6,3017.5,0.00969569]
[1764292007493,0.9713,3017.6,3017.5,0.001]
[1764292009294,0.9713,3017.6,3017.5,3.32369734]
[1764292009593,0.9713,3017.6,3017.5,3.31500165]
[1764292011386,0.9713,3017.6,3017.5,0.001]
[1764292011699,0.6822,3017.9,3017.5,0.101]
[1764292011893,0.30996374,3017.8,3017.5,0.101]
[1764292012092,0.4817,3017.8,3017.5,0.101]
[1764292012292,0.2005,3017.9,3017.6,0.00869295]
[1764292012665,0.6822,3017.9,3017.6,0.00869295]
[1764292012871,0.4896,3017.7,3017.6,0.00869295]
[1764292013169,0.4896,3017.7,3017.5,0.101]
[1764292013779,0.4896,3017.7,3017.6,3.31389183]
[1764292015199,0.002,3017.9,3017.6,7.72376579]
[1764292015372,0.002,3017.9,3017.8,0.5144]
[1764292015705,0.002,3017.9,3017.8,0.52308745]
[1764292015879,0.002,3017.9,3017.8,3.83675966]
[1764292016083,0.002,3017.9,3017.8,4.61910259]
[1764292017576,0.002,3017.9,3017.8,4.19601514]
[1764292017898,0.4916,3017.9,3017.8,4.19601514]
[1764292018297,0.4916,3017.9,3017.8,4.20470259]
[1764292019072,0.4916,3017.9,3017.8,4.19601514]
[1764292019597,0.4916,3017.9,3017.8,4.20470259]
[1764292020375,0.002,3017.9,3017.8,4.20470259]
[1764292021300,0.6901,3017.9,3017.8,4.09601514]
[1764292021484,1.1718,3017.9,3017.8,3.31367221]
[1764292021818,0.002,3017.9,3017.8,3.83675966]
[1764292023179,0.4916,3017.9,3017.8,3.41367221]
[1764292023576,0.9733,3017.9,3017.8,3.31367221]
[1764292025106,0.9733,3017.9,3017.7,6.62756245]
[1764292025408,0.873,3017.8,3017.7,3.31378044]
[1764292025607,0.873,3017.8,3017.7,4.04393633]
[1764292026304,0.873,3017.8,3017.7,3.31378044]
[1764292026885,0.31020166,3017.8,3017.7,7.40494221]
[1764292029025,1.28150166,3017.8,3017.5,6.7290033]
[1764292029316,0.002,3017.9,3017.5,6.7290033]
[1764292029489,0.31029237,3017.8,3017.7,4.60556177]
[1764292030090,0.79989237,3017.8,3017.7,4.19116177]
[1764292030487,0.002,3017.9,3017.7,5.33115588]
[1764292030688,0.002,3017.9,3017.8,0.00868869]
[1764292031099,0.4585,3017.9,3017.8,3.3223609]
[1764292031695,0.002,3017.9,3017.8,5.00025222]
[1764292031895,0.002,3017.9,3017.8,5.10025222]
[1764292032119,0.002,3017.9,3017.8,5.51465222]
[1764292032517,0.002,3017.9,3017.8,9.29471555]
[1764292032721,0.002,3017.9,3017.8,9.70042686]
[1764292032892,0.002,3017.9,3017.8,14.1060843]
[1764292033094,0.002,3018.0,3017.8,14.1060843]
[1764292033095,0.002,3018.0,3017.9,0.72559411]
[1764292033308,0.002,3018.0,3017.9,4.17274716]
[1764292035095,0.002,3018.0,3017.9,7.48630957]
[1764292035511,0.002,3018.0,3017.9,7.15530957]
[1764292035720,0.002,3018.0,3017.9,6.74090957]
[1764292036307,0.002,3018.0,3017.9,7.15530957]
[1764292038630,0.002,3018.0,3017.9,6.74090957]
[1764292039428,0.002,3018.0,3017.9,11.3497729]
[1764292043350,0.002,3018.2,3017.9,14.66333531]
[1764292043630,0.002,3018.2,3018.1,5.90355744]
[1764292043820,0.002,3018.2,3018.1,5.57255744]
[1764292044032,0.002,3018.2,3018.1,5.99563666]
[1764292044229,0.002,3018.5,3018.1,6.32663666]
[1764292044546,0.002,3018.5,3018.2,1.2598]
[1764292044747,0.002,3018.5,3018.2,1.80321045]
[1764292045400,0.002,3018.5,3018.2,5.84203761]
[1764292046128,0.002,3018.5,3018.2,5.42763761]
[1764292047238,0.4903,3018.3,3018.2,5.01323761]
[1764292047439,0.002,3018.3,3018.2,5.32763761]
[1764292047651,0.002,3018.3,3018.2,5.85071409]
[1764292048007,0.002,3018.3,3018.2,5.84203761]
[1764292048518,0.002,3018.3,3018.2,5.42763761]
[1764292050718,0.946,3018.3,3018.2,5.01323761]
[1764292051250,0.4903,3018.3,3018.2,5.01323761]
[1764292051647,0.002,3018.3,3018.2,5.32763761]
[1764292051838,0.002,3018.3,3018.2,5.42763761]
[1764292052884,0.002,3018.3,3018.2,5.85071409]
[1764292053147,0.002,3018.3,3018.2,6.18171409]
[1764292053652,0.002,3018.5,3018.4,0.1]
[1764292053850,0.002,3018.5,3018.4,1.63892707]
[1764292054624,0.002,3018.5,3018.4,6.55898451]
[1764292054826,0.002,3018.5,3018.4,9.87199802]
[1764292055353,0.002,3018.5,3018.4,10.28639802]
[1764292058036,0.002,3018.5,3018.4,9.87199802]
[1764292058436,0.002,3018.5,3018.4,9.45759802]
[1764292058657,0.4903,3018.5,3018.4,9.45759802]
[1764292058953,0.946,3018.5,3018.4,7.50747684]
[1764292059736,0.946,3018.5,3018.4,7.60747684]
[1764292063828,0.946,3018.5,3018.4,7.50747684]
[1764292064940,0.946,3018.5,3018.4,8.45347684]
[1764292065565,0.946,3018.5,3018.4,7.50747684]
[1764292069345,0.946,3018.5,3018.4,7.60747684]
[1764292071171,0.002,3018.5,3018.4,8.88167764]
[1764292071471,0.002,3018.5,3018.4,9.29607764]
[1764292071846,0.002,3018.5,3018.4,9.01435268]
[1764292072549,0.4833,3018.5,3018.4,9.01435268]
[1764292072746,0.9784,3018.5,3018.4,7.74015188]
[1764292073041,0.4833,3018.5,3018.4,7.74015188]
[1764292075579,0.4833,3018.5,3018.4,3.44568855]
[1764292075876,0.4833,3018.5,3018.4,7.64015188]
[1764292076080,0.9784,3018.5,3018.4,7.74015188]
[1764292076286,0.4833,3018.5,3018.4,7.74015188]
[1764292077778,0.9784,3018.5,3018.4,7.74015188]
[1764292079284,0.9784,3018.5,3018.4,3.44568855]
[1764292079585,1.28896251,3018.5,3018.3,6.62724399]
[1764292079755,0.8706,3018.4,3018.3,3.31412071]
[1764292080379,0.8706,3018.4,3018.3,3.42279443]
[1764292080954,0.8706,3018.4,3018.3,3.41412071]
[1764292081155,0.8706,3018.4,3018.3,3.31412071]
[1764292081384,0.8706,3018.4,3018.3,3.32279443]
[1764292081580,0.8706,3018.4,3018.3,3.31412071]
[1764292082176,0.8706,3018.4,3018.3,3.32279443]
[1764292083395,0.8706,3018.4,3018.3,3.31412071]
[1764292084466,0.4951,3018.3,3017.9,0.001]
[1764292084667,0.3718,3018.0,3017.9,0.001]
[1764292084858,0.6823026,3018.0,3017.9,0.001]
[1764292085058,2.16554053,3018.0,3017.9,0.001]
[1764292085289,2.44533212,3018.0,3017.9,0.001]
[1764292085684,3.16005929,3018.0,3017.9,0.001]
[1764292086274,2.44533212,3018.0,3017.9,0.001]
[1764292086496,6.16428873,3018.0,3017.9,0.001]
[1764292087963,2.85083612,3018.0,3017.9,0.001]
[1764292088589,6.16428873,3018.0,3017.9,0.001]
[1764292089764,2.85083612,3018.0,3017.9,0.001]
[1764292091897,1.44990611,3018.0,3017.9,0.001]
[1764292092196,1.1761026,3018.0,3017.9,0.001]
[1764292093402,0.3105026,3018.0,3017.9,0.47158471]
[1764292093697,0.209,3018.2,3017.9,0.001]
[1764292093991,0.3752,3018.0,3017.9,0.001]
[1764292095200,0.6995,3018.3,3018.0,0.1]
[1764292095405,0.30913606,3018.2,3018.0,0.1]
[1764292095594,0.6995,3018.3,3018.0,0.1]
[1764292095899,0.3764,3018.1,3018.0,3.41345261]
[1764292096097,0.209,3018.3,3018.0,3.31345261]
[1764292096398,0.30914698,3018.2,3018.0,3.77535261]
[1764292096562,0.7006,3018.3,3018.0,3.77535261]
[1764292096766,0.3091395,3018.2,3018.0,3.31345261]
[1764292096989,0.3752,3018.1,3018.0,3.31345261]
[1764292097382,0.7006,3018.3,3018.0,6.62690522]
[1764292097702,0.30915796,3018.2,3018.0,6.62690522]
[1764292097996,0.002,3018.5,3018.0,8.25885567]
[1764292098299,0.30916977,3018.4,3018.2,0.5709]
[1764292098489,0.30916977,3018.3,3018.2,0.5709]
[1764292098692,0.69666977,3018.3,3018.2,0.1]
[1764292098896,0.69666977,3018.3,3018.1,0.1]
[1764292099071,0.3875,3018.3,3018.0,7.80875567]
[1764292099967,0.8658,3018.3,3018.0,7.80875567]
[1764292100863,0.0048,3018.1,3018.0,4.39530306]
[1764292101070,0.31403932,3018.1,3017.9,0.001]
[1764292101296,1.38013932,3018.0,3017.9,0.001]
[1764292102207,1.8494948,3018.0,3017.9,0.001]
[1764292104415,5.56845141,3018.0,3017.9,0.001]
[1764292104732,6.29404552,3018.0,3017.9,0.001]
[1764292104883,7.10702148,3018.0,3017.9,0.001]
[1764292105212,7.00702148,3018.0,3017.9,0.001]
[1764292106101,2.98059291,3018.0,3017.9,0.001]
[1764292106306,6.29404552,3018.0,3017.9,0.001]
[1764292107118,7.00717246,3018.0,3017.9,0.001]
[1764292107414,6.29404552,3018.0,3017.9,0.001]
[1764292108120,7.00727554,3018.0,3017.9,0.001]
[1764292109523,3.69382293,3018.0,3017.9,0.001]
[1764292109701,2.49887334,3018.0,3017.9,0.001]
[1764292109896,1.78564332,3018.0,3017.9,0.001]
[1764292110102,5.09909593,3018.0,3017.9,0.001]
[1764292110323,1.78564332,3018.0,3017.9,0.001]
[1764292110632,5.09909593,3018.0,3017.9,0.001]
[1764292110925,5.95380175,3018.0,3017.9,0.001]
[1764292111397,5.74480175,3018.0,3017.9,0.001]
[1764292111727,2.64034914,3018.0,3017.9,0.001]
[1764292112431,5.95380175,3018.0,3017.9,0.001]
[1764292113026,2.64034914,3018.0,3017.9,0.001]
[1764292113901,5.95380175,3018.0,3017.9,0.001]
[1764292115221,2.64034914,3018.0,3017.9,0.001]
[1764292117134,6.67939586,3018.0,3017.9,0.001]
[1764292117302,7.49377699,3018.0,3017.9,0.001]
[1764292117630,7.62651631,3018.0,3017.9,0.001]
[1764292118737,7.52651631,3018.0,3017.9,0.001]
[1764292118940,7.62651631,3018.0,3017.9,0.001]
[1764292119137,7.85751631,3018.0,3017.9,0.001]
[1764292119439,7.62651631,3018.0,3017.9,0.001]
[1764292120962,7.52651631,3018.0,3017.9,0.001]
[1764292124243,7.62651631,3018.0,3017.9,0.001]
[1764292124565,7.49377699,3018.0,3017.9,0.001]
[1764292124770,7.82477699,3018.0,3017.9,0.001]
[1764292126646,18.28837623,3018.0,3017.9,0.001]
[1764292126943,19.48049235,3018.0,3017.9,0.001]
[1764292130382,18.28837623,3018.0,3017.9,0.001]
[1764292132380,28.40030541,3018.0,3017.9,0.001]
[1764292132581,10.37577435,3017.7,3017.6,0.001]
[1764292132879,9.6095788,3017.7,3017.6,0.001]
[1764292133074,10.0850788,3017.7,3017.6,0.001]
[1764292133269,11.8719905,3017.7,3017.6,0.001]
[1764292134084,23.26186081,3017.7,3017.6,0.001]
[1764292134376,22.41293552,3017.7,3017.6,0.001]
[1764292134598,21.21027646,3017.7,3017.6,0.001]
[1764292134762,21.64207144,3017.7,3017.6,0.001]
[1764292134947,4.326504,3017.3,3017.2,0.001]
[1764292135150,22.23417455,3017.3,3017.2,0.001]
[1764292135377,24.63783494,3017.3,3017.2,0.001]
[1764292135577,24.63783494,3017.3,3014.5,0.1894]
[1764292135578,13.49922911,3017.2,3015.4,0.4608]
[1764292135778,22.45870065,3017.1,3015.4,0.4608]
[1764292136052,22.45870065,3017.1,3015.0,0.001]
[1764292136053,15.60428311,3016.9,3015.0,0.001]
[1764292136349,15.60428311,3016.9,3015.2,0.4608]
[1764292136350,23.08532511,3016.9,3015.2,0.4608]
[1764292136550,23.08532511,3016.9,3015.0,0.001]
[1764292136551,5.01199811,3016.8,3015.0,0.001]
[1764292136864,9.80715835,3016.5,3015.0,0.4618]
[1764292137061,10.83139879,3016.5,3015.0,0.4618]
[1764292137291,12.49410663,3016.5,3015.0,0.4618]
[1764292137601,1.13109811,3016.2,3015.0,0.001]
[1764292137764,1.223704,3015.4,3015.0,0.001]
[1764292138082,5.78446703,3015.4,3015.0,0.001]
[1764292138282,6.25996703,3015.4,3015.0,0.001]
[1764292138886,5.35346703,3015.4,3015.1,0.1418]
[1764292139098,4.96626703,3015.4,3015.3,0.469]
[1764292140496,6.89294452,3015.4,3015.3,0.001]
[1764292140900,5.98704452,3015.4,3015.3,0.001]
[1764292141072,5.37686703,3015.4,3015.3,0.001]
[1764292141274,5.16786703,3015.4,3015.3,0.001]
[1764292141587,5.16786703,3015.4,3015.0,0.001]
[1764292141588,1.13109811,3015.3,3014.6,0.00875816]
[1764292141786,3.31623772,3015.5,3014.5,0.1]
[1764292141787,0.30985931,3015.2,3014.5,0.1]
[1764292141965,0.209,3015.1,3014.5,0.51993664]
[1764292142169,0.209,3015.1,3014.6,6.64315104]
[1764292142371,0.209,3015.1,3014.6,6.63437934]
[1764292142571,0.209,3015.0,3014.7,0.00877018]
[1764292142872,0.209,3015.0,3014.6,3.31718967]
[1764292143096,0.209,3015.0,3014.7,0.38248404]
[1764292143408,0.209,3015.0,3014.7,0.38248281]
[1764292143571,0.209,3015.0,3014.7,0.37371263]
[1764292144003,0.209,3015.0,3014.5,0.41993664]
[1764292144172,0.209,3015.0,3014.2,0.72559411]
[1764292144702,3.52578415,3015.0,3014.2,0.72559411]
[1764292144904,0.405504,3014.9,3014.2,0.72559411]
[1764292145203,1.068404,3014.9,3014.1,0.72559411]
[1764292145505,0.3076846,3014.8,3014.0,3.50724075]
[1764292145690,0.592904,3014.9,3014.1,0.68251796]
[1764292145896,0.405504,3014.7,3014.1,0.68251796]
[1764292146201,3.52619914,3014.6,3014.0,0.1894]
[1764292146407,0.405504,3014.5,3014.0,0.1894]
[1764292147878,0.405504,3014.5,3014.0,3.50723966]
[1764292148075,0.405504,3014.5,3014.0,0.1894]
[1764292148309,3.72284181,3014.5,3014.0,0.1894]
[1764292148708,4.19834181,3014.5,3014.0,0.1894]
[1764292149014,3.31710316,3014.7,3014.1,0.00878669]
[1764292149178,0.405504,3014.5,3014.0,0.1894]
[1764292149384,0.30743512,3014.4,3014.0,0.1894]
[1764292149611,0.405504,3014.5,3014.0,0.1894]
[1764292149913,0.30735847,3014.4,3014.0,0.1894]
[1764292150110,0.405504,3014.5,3014.0,0.1894]
[1764292150302,0.30732092,3014.4,3014.0,0.1894]
[1764292150506,0.405504,3014.5,3014.1,0.0087885]
[1764292150682,0.30731704,3014.4,3014.1,0.0087885]
[1764292150990,0.405504,3014.5,3014.1,0.0087885]
[1764292151190,0.30723716,3014.4,3014.1,0.0087885]
[1764292151490,0.405504,3014.5,3014.1,0.0087885]
[1764292151686,0.30714824,3014.4,3014.1,0.0087885]
[1764292151905,0.405504,3014.5,3014.1,0.0087885]
[1764292152115,0.30710649,3014.4,3014.1,0.0087885]
[1764292152406,0.405504,3014.5,3014.1,0.0087885]
[1764292152611,0.51614032,3014.4,3014.1,0.0087885]
[1764292152835,0.209,3014.4,3014.1,0.0087885]
[1764292153121,0.30720331,3014.3,3014.0,0.1904]
[1764292153296,0.6859,3014.4,3014.0,0.1904]
[1764292153297,0.209,3014.4,3014.0,0.1904]
[1764292153495,0.30717066,3014.3,3014.0,0.1904]
[1764292153811,0.209,3014.4,3014.0,0.1904]
[1764292153812,0.30717066,3014.2,3014.0,0.1904]
[1764292154020,0.209,3014.4,3014.0,0.1904]
[1764292154195,0.30725495,3014.3,3014.0,0.1904]
[1764292154399,0.30725495,3014.2,3014.0,0.1904]
[1764292154600,0.209,3014.4,3014.0,0.1904]
[1764292154895,0.30724129,3014.3,3014.0,0.1904]
[1764292155102,0.30724129,3014.2,3014.0,0.1904]
[1764292155298,0.30724129,3014.1,3014.0,0.1904]
[1764292157613,0.209,3014.4,3014.0,0.1904]
[1764292157916,0.3075889,3014.3,3014.0,0.1904]
[1764292158217,0.3075889,3014.2,3014.0,0.1904]
[1764292158423,0.3075889,3014.1,3014.0,0.1904]
[1764292159823,0.3075889,3014.1,3014.0,0.1991919]
[1764292160423,0.3075889,3014.1,3014.0,3.51704193]
[1764292160729,0.3075889,3014.1,3014.0,4.28936773]
[1764292161789,0.3075889,3014.1,3014.0,0.9715177]
[1764292161990,0.3075889,3014.1,3014.0,0.1904]
[1764292162402,0.3075889,3014.1,3014.0,3.50825003]
[1764292163193,0.3075889,3014.1,3014.0,3.51704193]
[1764292164119,0.3075889,3014.1,3014.0,3.50825003]
[1764292165542,0.3075889,3014.1,3014.0,3.51704193]
[1764292165720,0.3075889,3014.1,3014.0,4.63116357]
[1764292166422,0.3075889,3014.1,3014.0,4.73116357]
[1764292166718,0.002,3014.5,3014.0,4.73116357]
[1764292166924,0.31001042,3014.4,3014.2,4.30621608]
[1764292167118,0.31001042,3014.3,3014.2,4.31500125]
[1764292167320,0.31001042,3014.3,3014.2,5.54052355]
[1764292168036,0.31001042,3014.3,3014.2,8.85815343]
[1764292168238,0.31001042,3014.3,3014.2,8.84936826]
[1764292171241,0.31201042,3014.3,3014.2,8.84936826]
[1764292173134,0.31201042,3014.3,3014.2,4.64315218]
[1764292174931,0.31201042,3014.3,3014.2,8.85815466]
[1764292175118,0.31201042,3014.3,3014.2,8.84936826]
[1764292176633,0.31201042,3014.3,3014.2,8.74936826]
[1764292176837,0.31201042,3014.3,3014.2,7.52384596]
[1764292181059,0.002,3014.3,3014.2,7.52384596]
[1764292181226,0.31202024,3014.3,3014.2,7.52384596]
[1764292181552,1.27982024,3014.3,3014.1,3.31773823]
[1764292181748,0.31002024,3014.2,3014.1,3.31773823]
[1764292182355,0.79502024,3014.2,3014.1,3.31773823]
[1764292182532,1.27782024,3014.2,3014.1,3.31773823]
[1764292183546,1.27782024,3014.2,3014.0,0.001]
[1764292183719,0.31002024,3014.1,3014.0,0.001]
[1764292184562,0.31002024,3014.1,3014.0,4.20721608]
[1764292184735,0.31002024,3014.1,3014.0,5.30243095]
[1764292185128,0.002,3014.3,3014.0,5.30243095]
[1764292185458,0.31003533,3014.2,3014.1,3.31773995]
[1764292187459,0.79503533,3014.2,3014.1,3.31773995]
[1764292187672,0.9678,3014.2,3014.0,3.31884853]
[1764292187877,0.002,3014.3,3014.0,3.31884853]
[1764292187878,0.002,3014.3,3014.0,6.63669856]
[1764292188031,0.002,3014.3,3014.0,3.31884853]
[1764292188230,0.4848,3014.3,3014.0,3.31884853]
[1764292188430,0.4848,3014.3,3014.0,6.63669856]
[1764292189674,0.002,3014.3,3014.0,6.63669856]
[1764292193447,0.002,3014.3,3014.0,3.31884853]
[1764292193651,0.4848,3014.3,3014.0,3.31884853]
[1764292193962,0.4848,3014.3,3014.0,6.63669856]
[1764292194729,0.002,3014.3,3014.0,6.63669856]
[1764292194934,0.485,3014.1,3014.0,0.001]
[1764292195445,0.9678,3014.1,3014.0,0.001]
[1764292196462,0.485,3014.1,3014.0,0.001]
[1764292196675,0.4848,3014.3,3014.0,0.001]
[1764292196900,0.9678,3014.1,3014.0,0.001]
[1764292198539,0.002,3014.3,3014.0,4.20721608]
[1764292198740,0.31030099,3014.2,3014.1,0.10878915]
[1764292199142,1.27810099,3014.2,3014.1,0.00878915]
[1764292199443,1.27810099,3014.2,3014.0,0.001]
[1764292199649,0.31030099,3014.1,3014.0,0.001]
[1764292199848,0.31030099,3014.1,3014.0,3.31885003]
[1764292200037,0.31030099,3014.1,3014.0,0.101]
[1764292201870,0.211,3014.3,3014.0,3.41875809]
[1764292202071,0.31016761,3014.2,3014.1,0.00878915]
[1764292202480,1.27796761,3014.2,3014.0,3.31875809]
[1764292202648,0.485,3014.1,3014.0,3.31875809]
[1764292202977,0.9678,3014.1,3014.0,3.31875809]
[1764292203271,1.27804052,3014.1,3014.0,3.31875809]
[1764292203570,1.27804052,3014.1,3014.0,0.001]
[1764292206462,1.27804052,3014.1,3014.0,0.0097919]
[1764292207973,1.27804052,3014.1,3014.0,0.001]
[1764292208178,5.00128447,3014.1,3014.0,0.001]
[1764292208342,5.85842177,3014.1,3014.0,0.001]
[1764292210746,2.54068182,3014.1,3014.0,0.001]
[1764292211286,5.85842177,3014.1,3014.0,0.001]
[1764292211591,2.54068182,3014.1,3014.0,0.001]
[1764292211963,5.85842177,3014.1,3014.0,0.001]
[1764292213100,2.54068182,3014.1,3014.0,0.001]
[1764292213284,1.27804052,3014.1,3014.0,0.001]
[1764292213486,1.48574052,3014.1,3014.0,0.001]
[1764292215295,0.51924052,3014.1,3014.0,0.001]
[1764292215678,1.46964052,3014.1,3014.0,0.001]
[1764292216483,1.00644052,3014.1,3014.0,0.001]
[1764292216689,0.31024052,3014.1,3014.0,0.001]
[1764292216997,0.51924052,3014.1,3014.0,0.001]
[1764292217498,1.00644052,3014.1,3014.0,0.001]
[1764292218481,1.46964052,3014.1,3014.0,0.001]
[1764292220487,0.51924052,3014.1,3014.0,0.001]
[1764292220996,1.00644052,3014.1,3014.0,0.001]
[1764292221370,1.46964052,3014.1,3014.0,0.001]
[1764292225408,1.95270464,3014.1,3014.0,0.001]
[1764292225632,5.31191633,3014.1,3014.0,0.001]
[1764292228806,1.99417638,3014.1,3014.0,0.001]
[1764292229106,1.95270464,3014.1,3014.0,0.001]
[1764292229310,5.27044459,3014.1,3014.0,0.001]
[1764292229814,6.38996066,3014.1,3014.0,0.001]
[1764292230111,6.82096066,3014.1,3014.0,0.001]
[1764292230282,6.38996066,3014.1,3012.1,0.01]
[1764292230485,6.38996066,3014.1,3008.4,0.003]
[1764292230486,0.197,3010.8,3009.6,9.04022744]
[1764292230790,0.197,3010.8,3008.4,0.003]
[1764292230791,4.326504,3009.6,3008.8,0.003]
[1764292230981,4.326504,3009.6,3008.4,0.003]
[1764292230982,0.405504,3008.9,3008.2,0.1967]
[1764292231182,0.88373343,3008.3,3008.2,0.1967]
[1764292231379,0.88373343,3008.3,3007.5,0.07105391]
[1764292231380,0.92699001,3008.3,3007.5,0.07105391]
[1764292231584,0.92699001,3008.3,3007.9,0.01195761]
[1764292231585,0.71399001,3008.2,3007.9,0.01195761]
[1764292231880,0.88366453,3008.0,3007.9,0.01195761]
[1764292232081,0.71399001,3008.0,3007.9,0.003]
[1764292232793,1.58269401,3008.0,3007.9,0.003]
[1764292232985,4.68395193,3008.0,3007.9,0.003]
[1764292233198,2.30828812,3008.0,3007.9,0.003]
[1764292233396,2.52128812,3008.0,3007.9,0.003]
[1764292233610,10.01816262,3008.0,3007.9,0.003]
[1764292233922,11.28863317,3008.0,3007.9,0.003]
[1764292234119,11.28863317,3008.0,3006.8,3.7828674]
[1764292234120,0.405504,3007.8,3006.8,3.7828674]
[1764292234287,0.72559411,3007.9,3007.0,3.32556463]
[1764292234288,2.91227644,3007.3,3007.0,3.32556463]
[1764292234491,2.91227644,3007.3,3006.9,0.00897542]
[1764292234492,0.92699001,3007.2,3006.9,0.00897542]
[1764292234790,0.92699001,3007.2,3007.1,0.0716]
[1764292234985,0.92699001,3007.2,3007.1,0.5346]
[1764292235188,0.92699001,3007.2,3007.1,0.01]
[1764292235390,3.83926645,3007.2,3007.1,0.01]
[1764292235823,6.16311814,3007.2,3007.1,0.473]
[1764292235990,3.0378417,3007.2,3007.1,0.473]
[1764292236192,0.71399001,3007.2,3007.1,4.73631551]
[1764292236420,3.03336386,3007.2,3007.1,4.73631551]
[1764292236621,6.35871634,3007.2,3006.6,0.003]
[1764292236942,0.6842,3005.9,3004.7,0.13440495]
[1764292237141,0.405504,3004.7,3003.6,0.4571]
[1764292237327,2.3076658,3004.0,3003.6,0.4571]
[1764292237527,4.88639643,3003.9,3003.6,0.4571]
[1764292237715,0.71399001,3003.8,3003.6,0.4571]
[1764292238054,0.217,3004.4,3003.6,0.4571]
[1764292238055,0.71399001,3003.7,3003.6,0.4571]
[1764292238411,0.71399001,3003.7,3003.6,4.97503223]
[1764292238609,0.71399001,3003.7,3003.6,5.87804237]
[1764292238838,1.58634711,3003.7,3003.6,5.15244826]
[1764292239006,2.88455302,3004.1,3004.0,0.001]
[1764292239207,2.88455302,3004.6,3004.3,0.6597]
[1764292239414,5.9605806,3005.0,3004.9,0.463]
[1764292239637,2.88455302,3005.1,3004.9,0.463]
[1764292239940,2.88455302,3005.2,3004.4,0.4571]
[1764292240109,0.85925634,3004.6,3004.4,0.4571]
[1764292240610,0.85925634,3004.5,3004.4,3.7855516]
[1764292240808,3.7339556,3004.4,3004.0,0.001]
[1764292241045,3.7339556,3004.4,3003.3,0.125]
[1764292241046,0.898704,3004.1,3003.3,0.125]